[Event "*** Titled Tuesday Blitz"]
[Site "Chess.com"]
[Date "2020.03.03"]
[Round "1"]
[White "JakubPulpan"]
[Black "Region_07"]
[Result "1-0"]
[WhiteElo "2768"]
[BlackElo "2410"]
[TimeControl "180+1"]
[EndTime "9:05:53 PST"]
[Termination "JakubPulpan won by resignation"]

1. e4 {[%clk 0:03:00.4]} 1... Nc6 {[%clk 0:02:53.1]} 2. Bb5 {[%clk 0:02:57.4]}
2... Nd4 {[%clk 0:02:38.9]} 3. Bc4 {[%clk 0:02:49.4]} 3... e5 {[%clk 0:02:31.9]}
4. Nf3 {[%clk 0:02:48.5]} 4... Nxf3+ {[%clk 0:02:19.9]} 5. Qxf3 {[%clk
0:02:49.4]} 5... Qf6 {[%clk 0:02:18.8]} 6. Qb3 {[%clk 0:02:43.6]} 6... Bc5
{[%clk 0:02:15.3]} 7. O-O {[%clk 0:02:40.2]} 7... Ne7 {[%clk 0:02:14.6]} 8. d3
{[%clk 0:02:36.9]} 8... O-O {[%clk 0:02:12.8]} 9. Be3 {[%clk 0:02:37.2]} 9...
Bb6 {[%clk 0:02:07.4]} 10. Nc3 {[%clk 0:02:33.1]} 10... d6 {[%clk 0:02:03.2]}
11. Rae1 {[%clk 0:02:28.6]} 11... Be6 {[%clk 0:02:01.9]} 12. Nd5 {[%clk
0:02:25.9]} 12... Nxd5 {[%clk 0:01:13.2]} 13. Bxd5 {[%clk 0:02:25.4]} 13... Bxd5
{[%clk 0:01:12.4]} 14. Qxd5 {[%clk 0:02:25.2]} 14... c6 {[%clk 0:01:07.6]} 15.
Qb3 {[%clk 0:02:25.1]} 15... Qd8 {[%clk 0:01:00.2]} 16. f4 {[%clk 0:02:24.2]}
16... Bxe3+ {[%clk 0:00:55.6]} 17. Rxe3 {[%clk 0:02:23.6]} 17... Qb6 {[%clk
0:00:56.5]} 18. Qxb6 {[%clk 0:02:22.8]} 18... axb6 {[%clk 0:00:57.4]} 19. a3
{[%clk 0:02:22.5]} 19... exf4 {[%clk 0:00:51.6]} 20. Rxf4 {[%clk 0:02:23.4]}
20... Rae8 {[%clk 0:00:50.7]} 21. Kf2 {[%clk 0:02:22.9]} 21... Re5 {[%clk
0:00:46.4]} 22. Ref3 {[%clk 0:02:21.4]} 22... f6 {[%clk 0:00:46.1]} 23. g4
{[%clk 0:02:21.8]} 23... Rfe8 {[%clk 0:00:43.5]} 24. h4 {[%clk 0:02:22.4]} 24...
h6 {[%clk 0:00:41.6]} 25. Kg3 {[%clk 0:02:22.5]} 25... d5 {[%clk 0:00:40.3]} 26.
exd5 {[%clk 0:02:22.3]} 26... Rxd5 {[%clk 0:00:41.2]} 27. Rf5 {[%clk 0:02:16.2]}
27... Rxf5 {[%clk 0:00:39.1]} 28. Rxf5 {[%clk 0:02:17.1]} 28... Re2 {[%clk
0:00:37.8]} 29. Rf2 {[%clk 0:02:17.3]} 29... Re3+ {[%clk 0:00:34.4]} 30. Kf4
{[%clk 0:02:18.2]} 30... Re1 {[%clk 0:00:34.1]} 31. a4 {[%clk 0:02:18.3]} 31...
Kf7 {[%clk 0:00:33.5]} 32. b3 {[%clk 0:02:15.9]} 32... Ke6 {[%clk 0:00:33]} 33.
g5 {[%clk 0:02:16.4]} 33... hxg5+ {[%clk 0:00:32]} 34. hxg5 {[%clk 0:02:17.3]}
34... Rg1 {[%clk 0:00:29.4]} 35. Re2+ {[%clk 0:02:17.4]} 35... Kf7 {[%clk
0:00:29.2]} 36. gxf6 {[%clk 0:02:18.3]} 36... gxf6 {[%clk 0:00:29.2]} 37. Rh2
{[%clk 0:02:19]} 37... Kg7 {[%clk 0:00:27.4]} 38. Kf5 {[%clk 0:02:18.9]} 38...
Rg5+ {[%clk 0:00:22.8]} 39. Ke6 {[%clk 0:02:19.3]} 39... Rd5 {[%clk 0:00:21.4]}
40. Rg2+ {[%clk 0:02:18.6]} 40... Rg5 {[%clk 0:00:21.3]} 41. Rf2 {[%clk
0:02:16.9]} 41... Rd5 {[%clk 0:00:20]} 42. Rxf6 {[%clk 0:02:16.2]} 42... b5
{[%clk 0:00:16]} 43. Rf7+ {[%clk 0:02:14.5]} 43... Kg6 {[%clk 0:00:16.3]} 44.
Rxb7 {[%clk 0:02:15.4]} 44... bxa4 {[%clk 0:00:15.3]} 45. bxa4 {[%clk
0:02:16.3]} 45... Ra5 {[%clk 0:00:14.6]} 46. Rb4 {[%clk 0:02:16.7]} 46... c5
{[%clk 0:00:14.1]} 47. Rc4 {[%clk 0:02:17.6]} 47... Ra6+ {[%clk 0:00:13.8]} 48.
Kd5 {[%clk 0:02:18.5]} 1-0

[Event "*** Titled Tuesday Blitz"]
[Site "Chess.com"]
[Date "2020.03.03"]
[Round "1"]
[White "viktorko131"]
[Black "burbur555"]
[Result "0-1"]
[WhiteElo "2130"]
[BlackElo "2595"]
[TimeControl "180+1"]
[EndTime "9:05:54 PST"]
[Termination "burbur555 won on time"]

1. e4 {[%clk 0:03:00.2]} 1... c6 {[%clk 0:02:59.7]} 2. d4 {[%clk 0:02:59.3]}
2... d5 {[%clk 0:03:00]} 3. exd5 {[%clk 0:02:57.8]} 3... cxd5 {[%clk 0:02:59.6]}
4. c4 {[%clk 0:02:55.9]} 4... Nf6 {[%clk 0:02:59.6]} 5. Nc3 {[%clk 0:02:53.3]}
5... g6 {[%clk 0:02:58.3]} 6. cxd5 {[%clk 0:02:51.2]} 6... Bg7 {[%clk
0:02:57.8]} 7. Nge2 {[%clk 0:02:31]} 7... Nxd5 {[%clk 0:02:55.7]} 8. Nxd5 {[%clk
0:02:15]} 8... Qxd5 {[%clk 0:02:54.6]} 9. Be3 {[%clk 0:02:15.9]} 9... O-O {[%clk
0:02:42.1]} 10. Nc3 {[%clk 0:02:15.7]} 10... Qa5 {[%clk 0:02:41.1]} 11. Bc4
{[%clk 0:02:07.8]} 11... Nc6 {[%clk 0:02:39.5]} 12. O-O {[%clk 0:01:58.7]} 12...
Qb4 {[%clk 0:02:38.9]} 13. Qe2 {[%clk 0:01:26.8]} 13... Bg4 {[%clk 0:02:24.5]}
14. Qxg4 {[%clk 0:01:01]} 14... Qxc4 {[%clk 0:02:23.3]} 15. Rfd1 {[%clk
0:00:54.5]} 15... e6 {[%clk 0:02:20.6]} 16. Rac1 {[%clk 0:00:50]} 16... Rad8
{[%clk 0:02:17.2]} 17. Qe2 {[%clk 0:00:27.8]} 17... Qxe2 {[%clk 0:02:06.2]} 18.
Nxe2 {[%clk 0:00:28]} 18... Rd7 {[%clk 0:02:05.7]} 19. Rd2 {[%clk 0:00:22.3]}
19... Bf6 {[%clk 0:02:01.7]} 20. Rcd1 {[%clk 0:00:21.3]} 20... Rfd8 {[%clk
0:02:01.3]} 21. f3 {[%clk 0:00:18.1]} 21... Nb4 {[%clk 0:01:54.4]} 22. a3 {[%clk
0:00:17.9]} 22... Nd5 {[%clk 0:01:53.6]} 23. Kf2 {[%clk 0:00:17.2]} 23... Rc8
{[%clk 0:01:53.2]} 24. Nf4 {[%clk 0:00:15.7]} 24... Nxf4 {[%clk 0:01:47.4]} 25.
Bxf4 {[%clk 0:00:15.8]} 25... Rd5 {[%clk 0:01:47.6]} 26. Ke3 {[%clk 0:00:10.3]}
26... g5 {[%clk 0:01:46.2]} 27. Bg3 {[%clk 0:00:09.6]} 27... Kg7 {[%clk
0:01:45.7]} 28. Bf2 {[%clk 0:00:07.3]} 28... Kg6 {[%clk 0:01:44.8]} 29. Ke2
{[%clk 0:00:06.9]} 29... h5 {[%clk 0:01:43.9]} 30. Kd3 {[%clk 0:00:05.3]} 30...
Rc7 {[%clk 0:01:40.4]} 31. Ke4 {[%clk 0:00:05.4]} 31... Rcd7 {[%clk 0:01:39.6]}
32. Be3 {[%clk 0:00:03.8]} 32... Bg7 {[%clk 0:01:38.6]} 33. f4 {[%clk
0:00:02.3]} 33... g4 {[%clk 0:01:37.6]} 0-1

[Event "*** Titled Tuesday Blitz"]
[Site "Chess.com"]
[Date "2020.03.03"]
[Round "1"]
[White "parmupill123"]
[Black "Alexander_Moskalenko"]
[Result "0-1"]
[WhiteElo "2447"]
[BlackElo "2826"]
[TimeControl "180+1"]
[EndTime "9:06:02 PST"]
[Termination "Alexander_Moskalenko won on time"]

1. e4 {[%clk 0:03:00.9]} 1... c5 {[%clk 0:02:59.4]} 2. Nc3 {[%clk 0:03:00.6]}
2... d6 {[%clk 0:02:58.9]} 3. g3 {[%clk 0:03:00.9]} 3... g6 {[%clk 0:02:58.7]}
4. Bg2 {[%clk 0:03:01.2]} 4... Bg7 {[%clk 0:02:57.8]} 5. d3 {[%clk 0:03:01.7]}
5... Nc6 {[%clk 0:02:58.7]} 6. Be3 {[%clk 0:03:00]} 6... Rb8 {[%clk 0:02:59.6]}
7. Qd2 {[%clk 0:02:58.4]} 7... b5 {[%clk 0:02:58.4]} 8. Nge2 {[%clk 0:02:57.7]}
8... b4 {[%clk 0:02:55.8]} 9. Nd1 {[%clk 0:02:57.2]} 9... a5 {[%clk 0:02:55.7]}
10. O-O {[%clk 0:02:52.6]} 10... Nd4 {[%clk 0:02:55.6]} 11. Nc1 {[%clk 0:02:32]}
11... h5 {[%clk 0:02:37.2]} 12. c3 {[%clk 0:02:28.3]} 12... Nb5 {[%clk
0:02:37.5]} 13. Ne2 {[%clk 0:02:23.2]} 13... h4 {[%clk 0:02:37.2]} 14. d4 {[%clk
0:02:20.3]} 14... hxg3 {[%clk 0:02:37.1]} 15. hxg3 {[%clk 0:02:10.7]} 15... bxc3
{[%clk 0:02:36.6]} 16. bxc3 {[%clk 0:02:02.2]} 16... cxd4 {[%clk 0:02:36.9]} 17.
cxd4 {[%clk 0:01:58.3]} 17... Nf6 {[%clk 0:02:36.6]} 18. Rb1 {[%clk 0:01:44]}
18... Bh3 {[%clk 0:02:18.9]} 19. a4 {[%clk 0:01:34.4]} 19... Nxd4 {[%clk
0:02:16.9]} 20. Rxb8 {[%clk 0:01:29.7]} 20... Nxe2+ {[%clk 0:02:16.9]} 21. Qxe2
{[%clk 0:01:27.4]} 21... Qxb8 {[%clk 0:02:17.8]} 22. Nc3 {[%clk 0:01:19.7]}
22... Bxg2 {[%clk 0:02:16.8]} 23. Kxg2 {[%clk 0:01:18.9]} 23... Qc8 {[%clk
0:02:11.1]} 24. Qb5+ {[%clk 0:00:26.9]} 24... Kf8 {[%clk 0:02:10.6]} 25. f3
{[%clk 0:00:02.9]} 25... Qh3+ {[%clk 0:01:30.8]} 26. Kf2 {[%clk 0:00:03.5]}
26... Qh2+ {[%clk 0:01:31.4]} 27. Ke1 {[%clk 0:00:03.8]} 27... Qxg3+ {[%clk
0:01:31.9]} 28. Bf2 {[%clk 0:00:04.2]} 28... Qxf3 {[%clk 0:01:28.7]} 29. Bd4
{[%clk 0:00:03.5]} 29... Rh1 {[%clk 0:01:17.9]} 30. Qb8+ {[%clk 0:00:02]} 30...
Ne8 {[%clk 0:01:17.9]} 0-1

[Event "*** Titled Tuesday Blitz"]
[Site "Chess.com"]
[Date "2020.03.03"]
[Round "1"]
[White "lestri"]
[Black "Msb2"]
[Result "0-1"]
[WhiteElo "2491"]
[BlackElo "2875"]
[TimeControl "180+1"]
[EndTime "9:06:09 PST"]
[Termination "Msb2 won by resignation"]

1. c4 {[%clk 0:02:58.7]} 1... e5 {[%clk 0:02:54.4]} 2. Nc3 {[%clk 0:02:58.3]}
2... Bb4 {[%clk 0:02:49]} 3. Qc2 {[%clk 0:02:56.8]} 3... c5 {[%clk 0:02:47.2]}
4. Nd5 {[%clk 0:02:53.9]} 4... Ba5 {[%clk 0:02:44]} 5. a3 {[%clk 0:02:53.8]}
5... Nc6 {[%clk 0:02:43.7]} 6. Rb1 {[%clk 0:02:53.1]} 6... Nge7 {[%clk
0:02:19.3]} 7. b4 {[%clk 0:02:51.8]} 7... cxb4 {[%clk 0:02:18.5]} 8. axb4 {[%clk
0:02:52.7]} 8... Nxd5 {[%clk 0:02:16.9]} 9. bxa5 {[%clk 0:02:49.2]} 9... Nf6
{[%clk 0:02:12.3]} 10. Nf3 {[%clk 0:02:44]} 10... Qxa5 {[%clk 0:02:09.6]} 11.
Rb5 {[%clk 0:02:30.2]} 11... Qc7 {[%clk 0:02:05.8]} 12. Bb2 {[%clk 0:02:29.8]}
12... d6 {[%clk 0:02:04.5]} 13. c5 {[%clk 0:02:29.5]} 13... d5 {[%clk 0:02:04]}
14. e3 {[%clk 0:02:26.2]} 14... O-O {[%clk 0:02:03]} 15. Be2 {[%clk 0:02:24.7]}
15... Bg4 {[%clk 0:01:53.8]} 16. h3 {[%clk 0:02:23.9]} 16... Bh5 {[%clk
0:01:53.5]} 17. g4 {[%clk 0:02:09.7]} 17... Bg6 {[%clk 0:01:52.8]} 18. Qb3
{[%clk 0:02:10.2]} 18... Rab8 {[%clk 0:01:39]} 19. g5 {[%clk 0:02:09.6]} 19...
a6 {[%clk 0:01:36.6]} 20. gxf6 {[%clk 0:02:00.4]} 20... axb5 {[%clk 0:01:36.4]}
21. fxg7 {[%clk 0:02:00.3]} 21... Rfd8 {[%clk 0:01:36.1]} 22. Bxb5 {[%clk
0:02:00.1]} 22... d4 {[%clk 0:01:33.4]} 23. Rg1 {[%clk 0:01:51.2]} 23... b6
{[%clk 0:01:31.2]} 24. Bxc6 {[%clk 0:01:08]} 24... bxc5 {[%clk 0:00:53.8]} 25.
Bb5 {[%clk 0:00:56.1]} 25... c4 {[%clk 0:00:49.1]} 26. Qa4 {[%clk 0:00:53.8]}
26... c3 {[%clk 0:00:47.7]} 27. dxc3 {[%clk 0:00:51.7]} 27... dxc3 {[%clk
0:00:48.6]} 28. Bc1 {[%clk 0:00:50.9]} 28... Qd6 {[%clk 0:00:43.2]} 29. Be2
{[%clk 0:00:47.9]} 29... Rb1 {[%clk 0:00:41.6]} 0-1

[Event "*** Titled Tuesday Blitz"]
[Site "Chess.com"]
[Date "2020.03.03"]
[Round "1"]
[White "GM_dmitrij"]
[Black "ChesterF"]
[Result "1-0"]
[WhiteElo "2815"]
[BlackElo "2441"]
[TimeControl "180+1"]
[EndTime "9:06:11 PST"]
[Termination "GM_dmitrij won on time"]

1. e4 {[%clk 0:03:00.9]} 1... c5 {[%clk 0:02:56.6]} 2. Nf3 {[%clk 0:02:45.5]}
2... d6 {[%clk 0:02:56.3]} 3. d4 {[%clk 0:02:25.7]} 3... cxd4 {[%clk 0:02:56.3]}
4. Nxd4 {[%clk 0:02:26.6]} 4... Nf6 {[%clk 0:02:56.8]} 5. Nc3 {[%clk 0:02:26.8]}
5... a6 {[%clk 0:02:57.3]} 6. g3 {[%clk 0:02:26.8]} 6... e5 {[%clk 0:02:55.8]}
7. Nb3 {[%clk 0:02:25.3]} 7... Be6 {[%clk 0:02:50.4]} 8. Bg2 {[%clk 0:02:24.7]}
8... Nbd7 {[%clk 0:02:50.5]} 9. O-O {[%clk 0:02:24.4]} 9... Be7 {[%clk 0:02:51]}
10. a4 {[%clk 0:02:25]} 10... O-O {[%clk 0:02:50]} 11. Re1 {[%clk 0:02:25.5]}
11... Qc7 {[%clk 0:02:50.3]} 12. Nd2 {[%clk 0:02:24.3]} 12... Rfd8 {[%clk
0:02:12.7]} 13. Nf1 {[%clk 0:02:24.1]} 13... Nb6 {[%clk 0:02:04.3]} 14. a5
{[%clk 0:02:23.8]} 14... Nc4 {[%clk 0:02:00.4]} 15. Nd5 {[%clk 0:02:14.6]} 15...
Bxd5 {[%clk 0:01:53.8]} 16. exd5 {[%clk 0:02:15.5]} 16... Nxa5 {[%clk
0:01:49.3]} 17. b3 {[%clk 0:02:15.2]} 17... b5 {[%clk 0:01:31.1]} 18. f4 {[%clk
0:02:11.3]} 18... exf4 {[%clk 0:01:21.1]} 19. Rxa5 {[%clk 0:01:56.5]} 19... Qxa5
{[%clk 0:01:11.9]} 20. Rxe7 {[%clk 0:01:56.5]} 20... fxg3 {[%clk 0:01:12]} 21.
Nxg3 {[%clk 0:01:57.4]} 21... Re8 {[%clk 0:01:11.9]} 22. Nf5 {[%clk 0:01:43.6]}
22... Rxe7 {[%clk 0:00:28.6]} 23. Nxe7+ {[%clk 0:01:44.5]} 23... Kf8 {[%clk
0:00:29]} 24. Nc6 {[%clk 0:01:44]} 24... Qb6+ {[%clk 0:00:23]} 25. Qd4 {[%clk
0:01:35.7]} 25... Qxd4+ {[%clk 0:00:13.3]} 26. Nxd4 {[%clk 0:01:36.6]} 26... g6
{[%clk 0:00:06]} 27. Ba3 {[%clk 0:01:30.7]} 27... Ke7 {[%clk 0:00:06.2]} 28. c4
{[%clk 0:01:30.8]} 28... bxc4 {[%clk 0:00:06]} 29. bxc4 {[%clk 0:01:31.7]} 29...
Rc8 {[%clk 0:00:03.7]} 30. Nc6+ {[%clk 0:01:31.1]} 30... Kf8 {[%clk 0:00:01.5]}
31. Bxd6+ {[%clk 0:01:30.5]} 31... Kg7 {[%clk 0:00:01.6]} 32. Be5 {[%clk
0:01:30.8]} 1-0

[Event "*** Titled Tuesday Blitz"]
[Site "Chess.com"]
[Date "2020.03.03"]
[Round "1"]
[White "Astaneh"]
[Black "Parhamov"]
[Result "0-1"]
[WhiteElo "2545"]
[BlackElo "3059"]
[TimeControl "180+1"]
[EndTime "9:06:24 PST"]
[Termination "Parhamov won on time"]

1. d4 {[%clk 0:02:54.8]} 1... Nf6 {[%clk 0:02:59]} 2. c4 {[%clk 0:02:53.3]} 2...
e6 {[%clk 0:02:58.3]} 3. Nf3 {[%clk 0:02:52.1]} 3... d5 {[%clk 0:02:58.4]} 4. g3
{[%clk 0:02:51.7]} 4... Be7 {[%clk 0:02:57.3]} 5. Bg2 {[%clk 0:02:51.9]} 5...
O-O {[%clk 0:02:57.6]} 6. O-O {[%clk 0:02:52.1]} 6... Nbd7 {[%clk 0:02:57.3]} 7.
Qe1 {[%clk 0:02:49.3]} 7... b6 {[%clk 0:02:54.2]} 8. Nc3 {[%clk 0:02:44.5]} 8...
Bb7 {[%clk 0:02:53.6]} 9. Bf4 {[%clk 0:02:40.6]} 9... a6 {[%clk 0:02:46.8]} 10.
Nd2 {[%clk 0:02:35.9]} 10... c5 {[%clk 0:02:45.1]} 11. dxc5 {[%clk 0:02:34.2]}
11... Nxc5 {[%clk 0:02:41.9]} 12. Rd1 {[%clk 0:02:27.6]} 12... Qc8 {[%clk
0:02:34.6]} 13. cxd5 {[%clk 0:02:21.9]} 13... exd5 {[%clk 0:02:32.5]} 14. Nf3
{[%clk 0:02:12.8]} 14... Rd8 {[%clk 0:02:32.3]} 15. Nd4 {[%clk 0:02:10.4]} 15...
Nfe4 {[%clk 0:02:31.4]} 16. Rc1 {[%clk 0:02:06.2]} 16... Qd7 {[%clk 0:02:30.6]}
17. Be3 {[%clk 0:02:05.4]} 17... Bf6 {[%clk 0:02:30]} 18. Qd1 {[%clk 0:02:04]}
18... Rac8 {[%clk 0:02:29.5]} 19. h4 {[%clk 0:02:00.3]} 19... g6 {[%clk
0:02:25.5]} 20. Kh2 {[%clk 0:01:59.9]} 20... Qe7 {[%clk 0:02:25.9]} 21. Bh3
{[%clk 0:01:45.3]} 21... Rc7 {[%clk 0:02:25.6]} 22. Bf4 {[%clk 0:01:44]} 22...
Be5 {[%clk 0:02:25.7]} 23. e3 {[%clk 0:01:39.3]} 23... Bxf4 {[%clk 0:02:24.7]}
24. exf4 {[%clk 0:01:40.2]} 24... Qf6 {[%clk 0:02:24.7]} 25. Nf3 {[%clk
0:01:31.8]} 25... Nxc3 {[%clk 0:02:20.3]} 26. Rxc3 {[%clk 0:01:25.7]} 26... d4
{[%clk 0:02:19.1]} 27. Rc1 {[%clk 0:01:25.7]} 27... Bxf3 {[%clk 0:02:14.8]} 28.
Qxf3 {[%clk 0:01:25.2]} 28... a5 {[%clk 0:02:15.4]} 29. Rfd1 {[%clk 0:01:23.8]}
29... Rc6 {[%clk 0:02:11.8]} 30. b3 {[%clk 0:01:18.2]} 30... Rcd6 {[%clk
0:02:11.9]} 31. a3 {[%clk 0:01:18.1]} 31... d3 {[%clk 0:02:11.1]} 32. b4 {[%clk
0:01:17.8]} 32... axb4 {[%clk 0:02:11.1]} 33. axb4 {[%clk 0:01:18.7]} 33... Na4
{[%clk 0:02:11.4]} 34. Bg2 {[%clk 0:01:13.6]} 34... Qd4 {[%clk 0:02:06.8]} 35.
b5 {[%clk 0:01:09.6]} 35... Nc3 {[%clk 0:02:04.2]} 36. Rd2 {[%clk 0:01:08.4]}
36... Nxb5 {[%clk 0:02:04]} 37. Bf1 {[%clk 0:01:07.4]} 37... Qb4 {[%clk
0:01:47.3]} 38. Rxd3 {[%clk 0:00:43.2]} 38... Nd4 {[%clk 0:01:40.8]} 39. Qe4
{[%clk 0:00:35.8]} 39... Qb2 {[%clk 0:01:40.6]} 40. Qe3 {[%clk 0:00:28.2]} 40...
Nf5 {[%clk 0:01:39.9]} 41. Rxd6 {[%clk 0:00:27.1]} 41... Nxe3 {[%clk 0:01:39.7]}
42. Rxd8+ {[%clk 0:00:26.5]} 42... Kg7 {[%clk 0:01:40.3]} 0-1

[Event "*** Titled Tuesday Blitz"]
[Site "Chess.com"]
[Date "2020.03.03"]
[Round "1"]
[White "Gabix_94"]
[Black "cottage_cheese"]
[Result "1-0"]
[WhiteElo "2676"]
[BlackElo "2285"]
[TimeControl "180+1"]
[EndTime "9:06:27 PST"]
[Termination "Gabix_94 won by checkmate"]

1. d4 {[%clk 0:03:00.9]} 1... d5 {[%clk 0:02:55.3]} 2. Nf3 {[%clk 0:03:00.4]}
2... Nf6 {[%clk 0:02:53.7]} 3. c4 {[%clk 0:03:00.2]} 3... dxc4 {[%clk
0:02:53.1]} 4. Nc3 {[%clk 0:03:00]} 4... a6 {[%clk 0:02:51.2]} 5. e4 {[%clk
0:02:59.7]} 5... b5 {[%clk 0:02:49.5]} 6. e5 {[%clk 0:03:00]} 6... Nd5 {[%clk
0:02:48]} 7. a4 {[%clk 0:03:00.4]} 7... Nxc3 {[%clk 0:02:38.5]} 8. bxc3 {[%clk
0:02:59.4]} 8... Bb7 {[%clk 0:02:39.1]} 9. e6 {[%clk 0:02:59.5]} 9... f6 {[%clk
0:02:35.5]} 10. Be2 {[%clk 0:02:52.1]} 10... g6 {[%clk 0:02:34]} 11. O-O {[%clk
0:02:52.2]} 11... Bg7 {[%clk 0:02:33.7]} 12. Re1 {[%clk 0:02:48.2]} 12... O-O
{[%clk 0:02:33]} 13. Ba3 {[%clk 0:02:39]} 13... Re8 {[%clk 0:02:25.3]} 14. Bf1
{[%clk 0:02:38.6]} 14... Qd5 {[%clk 0:02:18.8]} 15. Rb1 {[%clk 0:02:27.9]} 15...
Nc6 {[%clk 0:02:09.8]} 16. Nd2 {[%clk 0:02:24.9]} 16... Nd8 {[%clk 0:02:03.8]}
17. Qg4 {[%clk 0:02:13.9]} 17... Bc8 {[%clk 0:01:57.1]} 18. Qe2 {[%clk
0:02:05.3]} 18... Nxe6 {[%clk 0:01:50.1]} 19. g3 {[%clk 0:01:59.9]} 19... Bb7
{[%clk 0:01:41.8]} 20. Qxe6+ {[%clk 0:01:58.6]} 20... Qxe6 {[%clk 0:01:35]} 21.
Rxe6 {[%clk 0:01:59.5]} 21... Kf7 {[%clk 0:01:34.5]} 22. Rbe1 {[%clk 0:01:58.2]}
22... Bd5 {[%clk 0:01:33.8]} 23. Rxe7+ {[%clk 0:01:57]} 23... Rxe7 {[%clk
0:01:31.4]} 24. Rxe7+ {[%clk 0:01:57.9]} 24... Kg8 {[%clk 0:01:30.8]} 25. Rxc7
{[%clk 0:01:57.9]} 25... Re8 {[%clk 0:01:29.8]} 26. Bg2 {[%clk 0:01:58.2]} 26...
Re1+ {[%clk 0:01:29]} 27. Nf1 {[%clk 0:01:58.5]} 27... Bxg2 {[%clk 0:01:23.2]}
28. Kxg2 {[%clk 0:01:59.4]} 28... Ra1 {[%clk 0:01:21.6]} 29. Bb4 {[%clk
0:01:50.2]} 29... Rxa4 {[%clk 0:01:19.5]} 30. Ra7 {[%clk 0:01:50]} 30... f5
{[%clk 0:01:14.4]} 31. Bc5 {[%clk 0:01:47.8]} 31... Ra2 {[%clk 0:00:52.4]} 32.
Ne3 {[%clk 0:01:40.7]} 32... a5 {[%clk 0:00:38.6]} 33. Nd5 {[%clk 0:01:40.3]}
33... h6 {[%clk 0:00:36.4]} 34. Ne7+ {[%clk 0:01:36.1]} 34... Kh7 {[%clk
0:00:32]} 35. d5 {[%clk 0:01:35.6]} 35... Bxc3 {[%clk 0:00:25.5]} 36. Nxf5+
{[%clk 0:01:34.6]} 36... Kh8 {[%clk 0:00:18.1]} 37. Nxh6 {[%clk 0:01:29.7]}
37... Bg7 {[%clk 0:00:16.9]} 38. Nf7+ {[%clk 0:01:29.3]} 38... Kh7 {[%clk
0:00:17.2]} 39. Ng5+ {[%clk 0:01:29.7]} 39... Kh6 {[%clk 0:00:17]} 40. Ne6
{[%clk 0:01:30]} 40... Bf6 {[%clk 0:00:10.7]} 41. Bf8+ {[%clk 0:01:29.6]} 41...
Kh5 {[%clk 0:00:08.3]} 42. Kh3 {[%clk 0:01:28.2]} 42... g5 {[%clk 0:00:08.2]}
43. g4+ {[%clk 0:01:25.6]} 43... Kg6 {[%clk 0:00:08.3]} 44. Bc5 {[%clk
0:01:25.7]} 44... c3 {[%clk 0:00:06.3]} 45. Nf8+ {[%clk 0:01:25.4]} 45... Kh6
{[%clk 0:00:03.2]} 46. Rh7# {[%clk 0:01:26.3]} 1-0

[Event "*** Titled Tuesday Blitz"]
[Site "Chess.com"]
[Date "2020.03.03"]
[Round "1"]
[White "VitaliyBernadskiy"]
[Black "juniortay"]
[Result "0-1"]
[WhiteElo "2782"]
[BlackElo "2464"]
[TimeControl "180+1"]
[EndTime "9:06:38 PST"]
[Termination "juniortay won on time"]

1. e4 {[%clk 0:02:59.9]} 1... e5 {[%clk 0:02:59.5]} 2. Nf3 {[%clk 0:02:59.6]}
2... Nf6 {[%clk 0:02:59.7]} 3. Nxe5 {[%clk 0:02:59.4]} 3... Nc6 {[%clk
0:02:59.9]} 4. Nxc6 {[%clk 0:02:57.1]} 4... dxc6 {[%clk 0:03:00.8]} 5. Nc3
{[%clk 0:02:56.6]} 5... Bc5 {[%clk 0:03:00.9]} 6. Be2 {[%clk 0:02:56.6]} 6...
Qd4 {[%clk 0:03:00.7]} 7. O-O {[%clk 0:02:55.8]} 7... h5 {[%clk 0:03:01.2]} 8.
d3 {[%clk 0:02:12.5]} 8... Ng4 {[%clk 0:03:00.4]} 9. Bxg4 {[%clk 0:02:08.7]}
9... hxg4 {[%clk 0:03:01.3]} 10. Bf4 {[%clk 0:02:03.5]} 10... Be6 {[%clk
0:02:59.6]} 11. Ne2 {[%clk 0:01:58.3]} 11... Qd7 {[%clk 0:02:39.2]} 12. d4
{[%clk 0:01:57.9]} 12... Bd6 {[%clk 0:02:31.7]} 13. c3 {[%clk 0:01:49.4]} 13...
O-O-O {[%clk 0:02:26.8]} 14. Qd2 {[%clk 0:01:37.2]} 14... Bxf4 {[%clk
0:02:19.8]} 15. Qxf4 {[%clk 0:01:36.5]} 15... Rh6 {[%clk 0:02:20.7]} 16. Rfe1
{[%clk 0:01:10.6]} 16... Rdh8 {[%clk 0:02:16.7]} 17. a3 {[%clk 0:01:04.8]} 17...
g5 {[%clk 0:02:05.5]} 18. Qg3 {[%clk 0:01:02.9]} 18... f6 {[%clk 0:02:02.6]} 19.
Nc1 {[%clk 0:01:00.8]} 19... Qh7 {[%clk 0:02:01.7]} 20. f4 {[%clk 0:00:44]}
20... Rxh2 {[%clk 0:01:45.5]} 21. f5 {[%clk 0:00:37.2]} 21... Bc4 {[%clk
0:01:38.9]} 22. b3 {[%clk 0:00:37]} 22... Rh1+ {[%clk 0:01:34.1]} 23. Kf2 {[%clk
0:00:37.2]} 23... Rxe1 {[%clk 0:01:34.3]} 24. Kxe1 {[%clk 0:00:38.1]} 24... Qh1+
{[%clk 0:01:33.6]} 25. Kf2 {[%clk 0:00:36.1]} 25... Qf1+ {[%clk 0:01:22.7]} 26.
Ke3 {[%clk 0:00:36.2]} 26... Ba6 {[%clk 0:01:19.6]} 27. Qf2 {[%clk 0:00:31.4]}
27... Qd1 {[%clk 0:01:10.7]} 28. Qd2 {[%clk 0:00:14.5]} 28... Qg1+ {[%clk
0:01:03.5]} 29. Qf2 {[%clk 0:00:13.8]} 29... Qd1 {[%clk 0:01:03]} 30. Qd2 {[%clk
0:00:13.7]} 30... Rh1 {[%clk 0:01:03.2]} 31. Qxd1 {[%clk 0:00:12.4]} 31... Rxd1
{[%clk 0:01:03.2]} 32. b4 {[%clk 0:00:07.3]} 32... Bc4 {[%clk 0:01:01.9]} 33. e5
{[%clk 0:00:03]} 33... Kd7 {[%clk 0:01:00.2]} 34. e6+ {[%clk 0:00:02.2]} 34...
Ke7 {[%clk 0:01:00.3]} 35. g3 {[%clk 0:00:03]} 35... a6 {[%clk 0:00:57.8]} 36.
a4 {[%clk 0:00:03.4]} 36... Rg1 {[%clk 0:00:54.7]} 0-1